Workbook

Sheet ТРАФАРЕТ
A1: ОТЧЕТ
A2: ОБ ИСПОЛНЕНИИ УЧРЕЖДЕНИЕМ ПЛАНА ЕГО ФИНАНСОВО-ХОЗЯЙСТВЕННОЙ ДЕЯТЕЛЬНОСТИ
J3: КОДЫ
I4: Форма по ОКУД | J4: 0503737 | K4: 5
D5: на | E5: 01 января 2016 г. | I5: Дата | J5: 2016-01-01 | K5: 500
A6: Учреждение | B6: МБОУ "Кощеевская СОШ" | I6: по ОКПО | K6: 01.01.2016
A7: Обособленное подразделение
A8: Учредитель | I8: по ОКТМО | J8: 14640440 | K8: 3
A9: Наименование органа, осуществля- | I9: по ОКПО
A10: ющего полномочия учредителя | I10: Глава по БК | K10: 3110006674
A11: Вид финансового обеспечения (деятельности) | B11: 4.субсидия на выполнение государственного (муниципального) задания | K11: ГОД
A12: Периодичность: квартальная, годовая
A13: Единица измерения: руб | I13: по ОКЕИ | J13: 383
A14: 1. Доходы учреждения
E16: Исполнено плановых назначений
A17: Наименование показателя | B17: Код | C17: Код | D17: Утверждено | E17: через | F17: через | G17: через | J17: Не исполнено
B18: стро- | C18: анали- | D18: плановых | E18: лицевые | F18: банковские | G18: кассу | H18: некассовыми | I18: итого | J18: плановых
B19: ки | C19: тики | D19: назначений | E19: счета | F19: счета | G19: учреждения | H19: операциями | J19: назначений
A20: 1 | B20: 2 | C20: 3 | D20: 4 | E20: 5 | F20: 6 | G20: 7 | H20: 8 | I20: 9 | J20: 10
A21: Доходы - всего | B21: 010 | D21: =D22+D25+D26+D27+D31+D40 -> 16242734.39 | E21: 16242734.39 | F21: 0 | G21: 0 | H21: 0 | I21: 16242734.39 | J21: 0
A22: Доходы от собственности | B22: 030 | C22: 120 | D22: =D24 -> 0 | E22: 0 | F22: 0 | G22: 0 | H22: 0 | I22: 0 | J22: 0
A23: из них:
A24: от аренды активов | B24: 031 | C24: 120 | I24: =SUM(E24:H24) -> 0 | J24: =IF(IF(D24="",0,D24)=0,0,(IF(D24>0,IF(I24>D24,0,D24-I24),IF(I24>D24,D24-I24,0)))) -> 0
A25: Доходы от оказания платных услуг (работ) | B25: 040 | C25: 130 | I25: =SUM(E25:H25) -> 0 | J25: =IF(IF(D25="",0,D25)=0,0,(IF(D25>0,IF(I25>D25,0,D25-I25),IF(I25>D25,D25-I25,0)))) -> 0
A26: Доходы от штрафов, пеней, иных сумм принудительного изъятия | B26: 050 | C26: 140 | I26: =SUM(E26:H26) -> 0 | J26: =IF(IF(D26="",0,D26)=0,0,(IF(D26>0,IF(I26>D26,0,D26-I26),IF(I26>D26,D26-I26,0)))) -> 0
A27: Безвозмездные поступления от бюджетов | B27: 060 | C27: 150 | D27: =SUM(D29:D30) -> 0 | E27: 0 | F27: 0 | G27: 0 | H27: 0 | I27: 0 | J27: =J29+J30 -> 0
A28: в том числе:
A29: поступления от наднациональных организаций и правительств иностранных государств | B29: 062 | C29: 152 | I29: =SUM(E29:H29) -> 0 | J29: =IF(IF(D29="",0,D29)=0,0,(IF(D29>0,IF(I29>D29,0,D29-I29),IF(I29>D29,D29-I29,0)))) -> 0
A30: поступления от международных финансовых организаций | B30: 063 | C30: 153 | I30: =SUM(E30:H30) -> 0 | J30: =IF(IF(D30="",0,D30)=0,0,(IF(D30>0,IF(I30>D30,0,D30-I30),IF(I30>D30,D30-I30,0)))) -> 0
A31: Доходы от операций с активами | B31: 090 | D31: =SUM(D33:D39) -> 0 | E31: 0 | F31: 0 | G31: 0 | H31: 0 | I31: 0 | J31: 0
A32: в том числе:
A33: от выбытий основных средств | B33: 092 | C33: 410 | I33: =SUM(E33:H33) -> 0 | J33: =IF(IF(D33="",0,D33)=0,0,(IF(D33>0,IF(I33>D33,0,D33-I33),IF(I33>D33,D33-I33,0)))) -> 0
A34: от выбытий нематериальных активов | B34: 093 | C34: 420 | I34: 0 | J34: 0
A35: от выбытий непроизведенных активов | B35: 094 | C35: 430 | I35: 0 | J35: 0
A36: от выбытий материальных запасов | B36: 095 | C36: 440 | I36: 0 | J36: 0
A37: от выбытий ценных бумаг, кроме акций | B37: 096 | C37: 620 | I37: 0 | J37: 0
A38: от выбытий акций | B38: 097 | C38: 630 | I38: 0 | J38: 0
A39: от выбытий иных финансовых активов | B39: 098 | C39: 650 | I39: 0 | J39: 0
A40: Прочие доходы | B40: 100 | C40: 180 | D40: =SUM(D42:D45) -> 16242734.39 | E40: 16242734.39 | F40: 0 | G40: 0 | H40: 0 | I40: 16242734.39 | J40: 0
A41: в том числе:
A42: субсидии | B42: 101 | C42: 180 | D42: 16242734.39 | E42: 16242734.39 | F42: 0 | G42: 0 | H42: 0 | I42: =SUM(E42:H42) -> 16242734.39 | J42: =IF(IF(D42="",0,D42)=0,0,(IF(D42>0,IF(I42>D42,0,D42-I42),IF(I42>D42,D42-I42,0)))) -> 0
A43: субсидии на осуществление капитальных вложений | B43: 102 | C43: 180 | I43: =SUM(E43:H43) -> 0 | J43: =IF(IF(D43="",0,D43)=0,0,(IF(D43>0,IF(I43>D43,0,D43-I43),IF(I43>D43,D43-I43,0)))) -> 0
A44: иные трансферты | B44: 103 | C44: 180 | I44: =SUM(E44:H44) -> 0 | J44: =IF(IF(D44="",0,D44)=0,0,(IF(D44>0,IF(I44>D44,0,D44-I44),IF(I44>D44,D44-I44,0)))) -> 0
A45: иные прочие доходы | B45: 104 | C45: 180 | I45: =SUM(E45:H45) -> 0 | J45: =IF(IF(D45="",0,D45)=0,0,(IF(D45>0,IF(I45>D45,0,D45-I45),IF(I45>D45,D45-I45,0)))) -> 0
A46: 2. Расходы учреждения | J46: Форма 0503737 с.2
E48: Исполнено плановых назначений
A49: Наименование показателя | B49: Код | C49: Код | D49: Утверждено | E49: через | F49: через | G49: через | J49: Не исполнено
B50: стро- | C50: анали- | D50: плановых | E50: лицевые | F50: банковские | G50: кассу | H50: некассовыми | I50: итого | J50: плановых
B51: ки | C51: тики | D51: назначений | E51: счета | F51: счета | G51: учреждения | H51: операциями | J51: назначений
A52: 1 | B52: 2 | C52: 3 | D52: 4 | E52: 5 | F52: 6 | G52: 7 | H52: 8 | I52: 9 | J52: 10
A53: Расходы - всего | B53: 200 | D53: =D55+D60+D68+D72+D83+D87+D91+D92+D98 -> 16318161.23 | E53: 16311245.21 | F53: 0 | G53: 0 | H53: 0 | I53: 16311245.21 | J53: 6916.02
A54: в том числе:
A55: Оплата труда и начисления на выплаты по оплате труда | B55: 160 | C55: 210 | D55: =SUM(D57:D59) -> 11539822.02 | E55: 11539822.02 | F55: 0 | G55: 0 | H55: 0 | I55: 11539822.02 | J55: 0
A56: в том числе:
A57: заработная плата | B57: 161 | C57: 211 | D57: 8849352.38 | E57: 8849352.38 | F57: 0 | G57: 0 | H57: 0 | I57: =SUM(E57:H57) -> 8849352.38 | J57: =IF(IF(D57="",0,D57)=0,0,(IF(D57>0,IF(I57>D57,0,D57-I57),IF(I57>D57,D57-I57,0)))) -> 0
A58: прочие выплаты | B58: 162 | C58: 212 | I58: =SUM(E58:H58) -> 0 | J58: =IF(IF(D58="",0,D58)=0,0,(IF(D58>0,IF(I58>D58,0,D58-I58),IF(I58>D58,D58-I58,0)))) -> 0
A59: начисления на выплаты по оплате труда | B59: 163 | C59: 213 | D59: 2690469.64 | E59: 2690469.64 | F59: 0 | G59: 0 | H59: 0 | I59: =SUM(E59:H59) -> 2690469.64 | J59: =IF(IF(D59="",0,D59)=0,0,(IF(D59>0,IF(I59>D59,0,D59-I59),IF(I59>D59,D59-I59,0)))) -> 0
A60: Приобретение работ, услуг | B60: 170 | C60: 220 | D60: =SUM(D62:D67) -> 2396663.17 | E60: 2390341.29 | F60: 0 | G60: 0 | H60: 0 | I60: 2390341.29 | J60: 6321.88
A61: в том числе:
A62: услуги связи | B62: 171 | C62: 221 | D62: 32812.67 | E62: 26690.67 | F62: 0 | G62: 0 | H62: 0 | I62: =SUM(E62:H62) -> 26690.67 | J62: =IF(IF(D62="",0,D62)=0,0,(IF(D62>0,IF(I62>D62,0,D62-I62),IF(I62>D62,D62-I62,0)))) -> 6122
A63: транспортные услуги | B63: 172 | C63: 222 | I63: 0 | J63: 0
A64: коммунальные услуги | B64: 173 | C64: 223 | D64: 1477300.04 | E64: 1477300.04 | F64: 0 | G64: 0 | H64: 0 | I64: 1477300.04 | J64: 0
A65: арендная плата за пользование имуществом | B65: 174 | C65: 224 | I65: 0 | J65: 0
A66: работы, услуги по содержанию имущества | B66: 175 | C66: 225 | D66: 562886.83 | E66: 562686.95 | F66: 0 | G66: 0 | H66: 0 | I66: 562686.95 | J66: 199.88
A67: прочие работы, услуги | B67: 176 | C67: 226 | D67: 323663.63 | E67: 323663.63 | F67: 0 | G67: 0 | H67: 0 | I67: 323663.63 | J67: 0
A68: Обслуживание долговых обязательств | B68: 190 | C68: 230 | D68: =SUM(D70:D71) -> 0 | E68: 0 | F68: 0 | G68: 0 | H68: 0 | I68: 0 | J68: 0
A69: в том числе:
A70: обслуживание долговых обязательств перед резидентами | B70: 191 | C70: 231 | I70: =SUM(E70:H70) -> 0 | J70: =IF(IF(D70="",0,D70)=0,0,(IF(D70>0,IF(I70>D70,0,D70-I70),IF(I70>D70,D70-I70,0)))) -> 0
A71: обслуживание долговых обязательств перед нерезидентами | B71: 192 | C71: 232 | I71: =SUM(E71:H71) -> 0 | J71: =IF(IF(D71="",0,D71)=0,0,(IF(D71>0,IF(I71>D71,0,D71-I71),IF(I71>D71,D71-I71,0)))) -> 0
A72: Безвозмездные перечисления организациям | B72: 210 | C72: 240 | D72: =SUM(D74:D75) -> 0 | E72: 0 | F72: 0 | G72: 0 | H72: 0 | I72: 0 | J72: 0
A73: в том числе:
A74: безвозмездные перечисления государственным и муниципальным организациям | B74: 211 | C74: 241 | I74: =SUM(E74:H74) -> 0 | J74: =IF(IF(D74="",0,D74)=0,0,(IF(D74>0,IF(I74>D74,0,D74-I74),IF(I74>D74,D74-I74,0)))) -> 0
A75: безвозмездные перечисления организациям, за исключением государственных и муниципальных организаций | B75: 212 | C75: 242 | I75: =SUM(E75:H75) -> 0 | J75: =IF(IF(D75="",0,D75)=0,0,(IF(D75>0,IF(I75>D75,0,D75-I75),IF(I75>D75,D75-I75,0)))) -> 0
J76: Форма 0503737 с.3
E78: Исполнено плановых назначений
A79: Наименование показателя | B79: Код | C79: Код | D79: Утверждено | E79: через | F79: через | G79: через | J79: Не исполнено
B80: стро- | C80: анали- | D80: плановых | E80: лицевые | F80: банковские | G80: кассу | H80: некассовыми | I80: итого | J80: плановых
B81: ки | C81: тики | D81: назначений | E81: счета | F81: счета | G81: учреждения | H81: операциями | J81: назначений
A82: 1 | B82: 2 | C82: 3 | D82: 4 | E82: 5 | F82: 6 | G82: 7 | H82: 8 | I82: 9 | J82: 10
A83: Безвозмездные перечисления бюджетам | B83: 230 | C83: 250 | D83: =SUM(D85:D86) -> 0 | E83: 0 | F83: 0 | G83: 0 | H83: 0 | I83: 0 | J83: 0
A84: в том числе:
A85: перечисления наднациональным организациям и правительствам иностранных государств | B85: 232 | C85: 252 | I85: =SUM(E85:H85) -> 0 | J85: =IF(IF(D85="",0,D85)=0,0,(IF(D85>0,IF(I85>D85,0,D85-I85),IF(I85>D85,D85-I85,0)))) -> 0
A86: перечисления международным организациям | B86: 233 | C86: 253 | I86: =SUM(E86:H86) -> 0 | J86: =IF(IF(D86="",0,D86)=0,0,(IF(D86>0,IF(I86>D86,0,D86-I86),IF(I86>D86,D86-I86,0)))) -> 0
A87: Социальное обеспечение | B87: 240 | C87: 260 | D87: =SUM(D89:D90) -> 306680.02 | E87: 306680.02 | F87: 0 | G87: 0 | H87: 0 | I87: 306680.02 | J87: 0
A88: в том числе:
A89: пособия по социальной помощи населению | B89: 242 | C89: 262 | D89: 306680.02 | E89: 306680.02 | F89: 0 | G89: 0 | H89: 0 | I89: =SUM(E89:H89) -> 306680.02 | J89: =IF(IF(D89="",0,D89)=0,0,(IF(D89>0,IF(I89>D89,0,D89-I89),IF(I89>D89,D89-I89,0)))) -> 0
A90: пенсии, пособия, выплачиваемые организациями сектора государственного управления | B90: 243 | C90: 263 | I90: =SUM(E90:H90) -> 0 | J90: =IF(IF(D90="",0,D90)=0,0,(IF(D90>0,IF(I90>D90,0,D90-I90),IF(I90>D90,D90-I90,0)))) -> 0
A91: Прочие расходы | B91: 250 | C91: 290 | D91: 348622.15 | E91: 348265.26 | F91: 0 | G91: 0 | H91: 0 | I91: =SUM(E91:H91) -> 348265.26 | J91: =IF(IF(D91="",0,D91)=0,0,(IF(D91>0,IF(I91>D91,0,D91-I91),IF(I91>D91,D91-I91,0)))) -> 356.89
A92: Расходы по приобретению нефинансовых активов | B92: 260 | C92: 300 | D92: =SUM(D94:D97) -> 1726373.87 | E92: 1726136.62 | F92: 0 | G92: 0 | H92: 0 | I92: 1726136.62 | J92: 237.25
A93: в том числе:
A94: основных средств | B94: 261 | C94: 310 | D94: 226272.9 | E94: 226177 | F94: 0 | G94: 0 | H94: 0 | I94: =SUM(E94:H94) -> 226177 | J94: =IF(IF(D94="",0,D94)=0,0,(IF(D94>0,IF(I94>D94,0,D94-I94),IF(I94>D94,D94-I94,0)))) -> 95.9
A95: нематериальных активов | B95: 262 | C95: 320 | I95: =SUM(E95:H95) -> 0 | J95: =IF(IF(D95="",0,D95)=0,0,(IF(D95>0,IF(I95>D95,0,D95-I95),IF(I95>D95,D95-I95,0)))) -> 0
A96: непроизведенных активов | B96: 263 | C96: 330 | I96: =SUM(E96:H96) -> 0 | J96: =IF(IF(D96="",0,D96)=0,0,(IF(D96>0,IF(I96>D96,0,D96-I96),IF(I96>D96,D96-I96,0)))) -> 0
A97: материальных запасов | B97: 264 | C97: 340 | D97: 1500100.97 | E97: 1499959.62 | F97: 0 | G97: 0 | H97: 0 | I97: =SUM(E97:H97) -> 1499959.62 | J97: =IF(IF(D97="",0,D97)=0,0,(IF(D97>0,IF(I97>D97,0,D97-I97),IF(I97>D97,D97-I97,0)))) -> 141.35
A98: Расходы по приобретению финансовых активов | B98: 270 | C98: 500 | D98: =SUM(D100:D102) -> 0 | E98: 0 | F98: 0 | G98: 0 | H98: 0 | I98: 0 | J98: 0
A99: из них:
A100: ценных бумаг, кроме акций | B100: 271 | C100: 520 | I100: =SUM(E100:H100) -> 0 | J100: =IF(IF(D100="",0,D100)=0,0,(IF(D100>0,IF(I100>D100,0,D100-I100),IF(I100>D100,D100-I100,0)))) -> 0
A101: акций и иных форм участия в капитале | B101: 272 | C101: 530 | I101: =SUM(E101:H101) -> 0 | J101: =IF(IF(D101="",0,D101)=0,0,(IF(D101>0,IF(I101>D101,0,D101-I101),IF(I101>D101,D101-I101,0)))) -> 0
A102: иных финансовых активов | B102: 273 | C102: 550 | I102: =SUM(E102:H102) -> 0 | J102: =IF(IF(D102="",0,D102)=0,0,(IF(D102>0,IF(I102>D102,0,D102-I102),IF(I102>D102,D102-I102,0)))) -> 0
A103: Возвраты расходов и выплат обеспечений прошлых лет (стр. 300 (гр.5-9) = стр.900 (гр.4-8)) | B103: 300 | E103: =D158 -> 0 | F103: =E158 -> 0 | G103: =F158 -> 0 | H103: =G158 -> 0 | I103: =SUM(E103:H103) -> 0 | J103: =IF(IF(D103="",0,D103)=0,0,(IF(D103>0,IF(I103>D103,0,D103-I103),IF(I103>D103,D103-I103,0)))) -> 0
A105: Результат исполнения (дефицит / профицит) | B105: 450 | D105: =D21-(D53+D103) -> -75426.84 | E105: -68510.82 | F105: 0 | G105: 0 | H105: 0 | I105: -68510.82 | J105: х
A107: 3. Источники финансирования дефицита средств учреждения | J107: Форма 0503737 с.4
E109: Исполнено плановых назначений
B110: Код | C110: Код | D110: Утверждено | E110: через | F110: через | G110: через | J110: Не исполнено
A111: Наименование показателя | B111: стро- | C111: анали- | D111: плановых | E111: лицевые | F111: банковские | G111: кассу | H111: некассовыми | I111: итого | J111: плановых
B112: ки | C112: тики | D112: назначений | E112: счета | F112: счета | G112: учреждения | H112: операциями | J112: назначений
A113: 1 | B113: 2 | C113: 3 | D113: 4 | E113: 5 | F113: 6 | G113: 7 | H113: 8 | I113: 9 | J113: 10
A114: Источники финансирования дефицита средств - всего (стр.520+стр.620+стр.700+стр.820+стр.830) | B114: 500 | D114: =D116+D123+D128+D131+D135+D146 -> 75426.84 | E114: =E116+E123+E128+E131+E135+E146 -> 68510.82 | F114: =F116+F123+F128+F131+F135+F146 -> 0 | G114: =G116+G123+G128+G131+G146 -> 0 | H114: =H116+H123+H128+H131+H146 -> 0 | I114: =I116+I123+I128+I131+I135+I146 -> 68510.82 | J114: =J116+J123+J128+J131+J135+J146 -> 6916.02
A115: в том числе:
A116: Внутренние источники | B116: 520 | D116: =SUM(D118:D122) -> 0 | E116: 0 | F116: 0 | G116: 0 | H116: 0 | I116: 0 | J116: 0
A117: из них:
A118: курсовая разница | B118: 521 | C118: 171 | I118: =SUM(E118:H118) -> 0 | J118: =IF(IF(D118="",0,D118)=0,0,(IF(D118>0,IF(I118>D118,0,D118-I118),IF(I118>D118,D118-I118,0)))) -> 0
A119: поступления от погашения займов (ссуд) | B119: 525 | C119: 640 | I119: =SUM(E119:H119) -> 0 | J119: =IF(IF(D119="",0,D119)=0,0,(IF(D119>0,IF(I119>D119,0,D119-I119),IF(I119>D119,D119-I119,0)))) -> 0
A120: выплаты по предоставлению займов (ссуд) | B120: 526 | C120: 540 | I120: =SUM(E120:H120) -> 0 | J120: =IF(IF(D120="",0,D120)=0,0,(IF(D120>0,IF(I120>D120,0,D120-I120),IF(I120>D120,D120-I120,0)))) -> 0
A121: поступления заимствований от резидентов | B121: 527 | C121: 710 | I121: =SUM(E121:H121) -> 0 | J121: =IF(IF(D121="",0,D121)=0,0,(IF(D121>0,IF(I121>D121,0,D121-I121),IF(I121>D121,D121-I121,0)))) -> 0
A122: погашение заимствований от резидентов | B122: 528 | C122: 810 | I122: =SUM(E122:H122) -> 0 | J122: =IF(IF(D122="",0,D122)=0,0,(IF(D122>0,IF(I122>D122,0,D122-I122),IF(I122>D122,D122-I122,0)))) -> 0
A123: Внешние источники | B123: 620 | D123: =SUM(D125:D127) -> 0 | E123: 0 | F123: 0 | G123: 0 | H123: 0 | I123: 0 | J123: 0
A124: из них:
A125: курсовая разница | B125: 621 | C125: 171 | I125: =SUM(E125:H125) -> 0 | J125: =IF(IF(D125="",0,D125)=0,0,(IF(D125>0,IF(I125>D125,0,D125-I125),IF(I125>D125,D125-I125,0)))) -> 0
A126: поступления заимствований от резидентов | B126: 625 | C126: 720 | I126: =SUM(E126:H126) -> 0 | J126: =IF(IF(D126="",0,D126)=0,0,(IF(D126>0,IF(I126>D126,0,D126-I126),IF(I126>D126,D126-I126,0)))) -> 0
A127: погашение заимствований от нерезидентов | B127: 626 | C127: 820 | I127: =SUM(E127:H127) -> 0 | J127: =IF(IF(D127="",0,D127)=0,0,(IF(D127>0,IF(I127>D127,0,D127-I127),IF(I127>D127,D127-I127,0)))) -> 0
A128: Изменение остатков средств | B128: 700 | D128: 75426.84 | E128: =E129+E130 -> 68510.82 | F128: =F129+F130 -> 0 | G128: =G129+G130 -> 0 | H128: =H129+H130 -> 0 | I128: =I129+I130 -> 68510.82 | J128: =IF(IF(D128="",0,D128)=0,0,(IF(D128>0,IF(I128>D128,0,D128-I128),IF(I128>D128,D128-I128,0)))) -> 6916.02
A129: увеличение остатков средств, всего | B129: 710 | C129: 510 | D129: х | E129: -16242734.39 | F129: 0 | G129: 0 | H129: 0 | I129: =SUM(E129:H129) -> -16242734.39 | J129: х
A130: уменьшение остатков средств, всего | B130: 720 | C130: 610 | D130: х | E130: 16311245.21 | F130: 0 | G130: 0 | H130: 0 | I130: =SUM(E130:H130) -> 16311245.21 | J130: х
A131: Изменение остатков по внутренним оборотам средств учреждения | B131: 730 | E131: =E133+E134 -> 0 | F131: =F133+F134 -> 0 | G131: =G133+G134 -> 0 | H131: =H133+H134 -> 0 | I131: =I133+I134 -> 0 | J131: =IF(IF(D131="",0,D131)=0,0,(IF(D131>0,IF(I131>D131,0,D131-I131),IF(I131>D131,D131-I131,0)))) -> 0
A132: в том числе:
A133: увеличение остатков средств учреждения | B133: 731 | C133: 510 | I133: =SUM(E133:H133) -> 0 | J133: х
A134: уменьшение остатков средств учреждения | B134: 732 | C134: 610 | I134: =SUM(E134:H134) -> 0 | J134: х
A135: Изменение остатков по внутренним расчетам | B135: 820 | D135: =D137+D138 -> 0 | E135: =E137+E138 -> 0 | F135: =F137+F138 -> 0 | G135: х | H135: х | I135: =I137+I138 -> 0 | J135: =J137+J138 -> 0
A136: в том числе:
A137: увеличение остатков по внутренним расчетам (Кт 030404510) | B137: 821 | G137: х | H137: х | I137: =SUM(E137:F137) -> 0 | J137: =IF(IF(D137="",0,D137)=0,0,(IF(D137>0,IF(I137>D137,0,D137-I137),IF(I137>D137,D137-I137,0)))) -> 0
A138: уменьшение остатков по внутренним расчетам (Дт 030404610) | B138: 822 | G138: х | H138: х | I138: =SUM(E138:F138) -> 0 | J138: =IF(IF(D138="",0,D138)=0,0,(IF(D138>0,IF(I138>D138,0,D138-I138),IF(I138>D138,D138-I138,0)))) -> 0
J139: Форма 0503737 с.5
E141: Исполнено плановых назначений
B142: Код | C142: Код | D142: Утверждено | E142: через | F142: через | G142: через | J142: Не исполнено
A143: Наименование показателя | B143: стро- | C143: анали- | D143: плановых | E143: лицевые | F143: банковские | G143: кассу | H143: некассовыми | I143: итого | J143: плановых
B144: ки | C144: тики | D144: назначений | E144: счета | F144: счета | G144: учреждения | H144: операциями | J144: назначений
A145: 1 | B145: 2 | C145: 3 | D145: 4 | E145: 5 | F145: 6 | G145: 7 | H145: 8 | I145: 9 | J145: 10
A146: Изменение остатков расчетов по внутренним привлечениям средств | B146: 830 | D146: =D148+D149 -> 0 | E146: =E148+E149 -> 0 | F146: =F148+F149 -> 0 | G146: =G148 + G149 -> 0 | H146: =H148 + H149 -> 0 | I146: =I148+I149 -> 0 | J146: =J148+J149 -> 0
A147: в том числе:
A148: увеличение расчетов по внутреннему привлечению остатков средств (Кт 030406000) | B148: 831 | I148: =SUM(E148:H148) -> 0 | J148: =IF(IF(D148="",0,D148)=0,0,(IF(D148>0,IF(I148>D148,0,D148-I148),IF(I148>D148,D148-I148,0)))) -> 0
A149: уменьшение расчетов по внутреннему привлечению остатков средств (Дт 030406000) | B149: 832 | I149: =SUM(E149:H149) -> 0 | J149: =IF(IF(D149="",0,D149)=0,0,(IF(D149>0,IF(I149>D149,0,D149-I149),IF(I149>D149,D149-I149,0)))) -> 0
A151: 4. Сведения о возвратах расходов и выплат обеспечений прошлых лет
D153: Произведено возвратов
B154: Код | C154: Код | D154: через | E154: через | F154: через
A155: Наименование показателя | B155: стро- | C155: анали- | D155: лицевые | E155: банковские | F155: кассу | G155: некассовыми | H155: итого
B156: ки | C156: тики | D156: счета | E156: счета | F156: учреждения | G156: операциями
A157: 1 | B157: 2 | C157: 3 | D157: 4 | E157: 5 | F157: 6 | G157: 7 | H157: 8
A158: Возвращено расходов и обеспечений прошлых лет, всего | B158: 900 | D158: =SUM(D160:D161) -> 0 | E158: =SUM(E160:E161) -> 0 | F158: =SUM(F160:F161) -> 0 | G158: =SUM(G160:G161) -> 0 | H158: =SUM(H160:H161) -> 0
A159: из них по кодам аналитики:
B160: 900 | H160: =SUM(D160:G160) -> 0
A163: Руководитель ______________________________ | E163: Руководитель финансово- экономической службы __________________________
A164: (подпись) | B164: (расшифровка подписи) | E164: (подпись) | I164: (расшифровка подписи)
A166: Главный бухгалтер ___________________________
A167: (подпись) | B167: (расшифровка подписи)
D168: Централизованная бухгалтерия
G169: (наименование, ОГРН, ИНН,КПП, местонахождение )
B170: Руководитель
B171: (уполномоченное лицо) | E171: (должность) | G171: (подпись) | I171: (расшифровка подписи)
A172: Исполнитель
B173: (должность) | E173: (подпись) | G173: (расшифровка подписи) | I173: (телефон, email)
A175: "________" _______________ 20 ___ г.
